bitfinex/quotes_SOLUSD_20240624
["timestamp","ask_amount","ask_price","bid_price","bid_amount"]
[1719197055476,20.0,127.2,127.1,0.34]
[1719197056083,20.0,127.2,127.15,7.8646]
[1719197056484,20.0,127.2,127.14,7.865]
[1719197057086,20.0,127.2,127.1,0.34]
[1719197057292,7.8637,127.17,127.12,7.8661]
[1719197057491,7.863,127.18,127.12,7.8661]
[1719197057792,7.863,127.18,127.13,7.8657]
[1719197057998,7.8625,127.19,127.13,7.8657]
[1719197058385,20.0,127.2,127.12,7.8664]
[1719197058803,7.8631,127.18,127.12,7.8664]
[1719197059384,7.8648,127.15,127.1,7.8674]
[1719197059603,7.865,127.15,127.08,6.1887]
[1719197059915,7.8643,127.16,127.1,7.8673]
[1719197060335,0.17,127.2,127.08,25.8599]
[1719197060336,7.8638,127.17,127.08,25.8599]
[1719197060616,7.8636,127.17,127.09,19.6699]
[1719197060800,20.0,127.16,127.12,7.8661]
[1719197063987,20.0,127.16,127.08,24.9387]
[1719197064206,14.8699,127.21,127.09,7.8678]
[1719197064405,18.75,127.19,127.09,7.8678]
[1719197064790,20.0,127.18,127.09,7.8678]
[1719197064996,7.8656,127.14,127.09,7.8678]
[1719197065490,7.8665,127.12,127.06,7.8701]
[1719197065700,14.7158,127.15,127.06,7.8701]
[1719197066019,14.7158,127.15,127.03,15.4006]
[1719197066020,20.0,127.14,127.05,7.8706]
[1719197066322,7.8678,127.1,127.05,7.8706]
[1719197066498,7.8673,127.11,127.06,7.8702]
[1719197069421,7.8668,127.12,127.07,7.8696]
[1719197070029,7.8668,127.12,127.06,7.87]
[1719197070493,7.8668,127.12,127.03,35.0809]
[1719197070494,7.8661,127.13,127.08,7.8687]
[1719197071319,20.0,127.14,127.09,7.8682]
[1719197072199,27.8657,127.14,127.09,7.8682]
[1719197073226,7.866,127.13,127.07,45.0]
[1719197073395,14.7158,127.15,127.06,45.0]
[1719197073590,7.8659,127.14,127.07,0.17]
[1719197073895,7.8659,127.14,127.07,0.34]
[1719197075299,7.8659,127.14,127.09,7.8683]
[1719197075503,7.8666,127.12,127.07,8.0393]
[1719197075707,7.8666,127.12,127.07,7.8693]
[1719197076009,7.8666,127.12,127.08,45.0]
[1719197076406,14.7158,127.15,127.08,45.0]
[1719197076609,14.7158,127.15,127.03,35.0807]
[1719197076812,7.8675,127.11,127.06,7.8701]
[1719197077123,7.8675,127.11,127.05,7.8706]
[1719197077313,7.8667,127.12,127.04,19.6777]
[1719197077626,7.8661,127.13,127.08,7.8689]
[1719197078305,7.8669,127.12,127.07,7.8693]
[1719197078907,7.8672,127.11,127.06,7.87]
[1719197079103,7.8672,127.11,127.07,45.0]
[1719197079616,7.8668,127.12,127.07,52.8696]
[1719197080946,7.8662,127.13,127.08,7.8689]
[1719197082018,7.8666,127.12,127.07,52.8693]
[1719197082804,20.0,127.14,127.09,7.8682]
[1719197082805,27.8656,127.14,127.09,7.8682]
[1719197084427,7.866,127.13,127.08,7.8687]
[1719197084643,27.8655,127.14,127.09,45.0]
[1719197084932,27.8655,127.14,127.07,45.0]
[1719197084933,27.8655,127.14,127.08,7.8685]
[1719197085234,7.866,127.13,127.09,45.0]
[1719197086133,7.8666,127.12,127.07,7.8694]
[1719197086543,7.8701,127.07,127.03,15.4006]
[1719197086721,38.75,127.14,127.03,15.4006]
[1719197086922,0.34,127.13,127.03,15.4006]
[1719197087217,7.867,127.12,127.03,15.4006]
[1719197087529,7.8679,127.1,127.05,7.8705]
[1719197088134,27.8674,127.11,127.06,7.8701]
[1719197088429,7.8678,127.1,127.05,7.8707]
[1719197089705,7.8688,127.09,127.04,7.8712]
[1719197089917,7.8703,127.06,127.02,6.1348]
[1719197090122,20.0,127.11,127.02,6.1348]
[1719197090123,20.0,127.11,127.03,52.872]
[1719197090356,7.8687,127.09,127.04,7.8715]
[1719197091928,7.8687,127.09,127.05,45.0]
[1719197092115,7.868,127.1,127.05,52.8708]
[1719197092731,7.8669,127.12,127.07,7.8691]
[1719197094034,1.70325693,127.14,127.11,7.8671]
[1719197094236,9.56885693,127.14,127.09,7.8682]
[1719197094439,1.70325693,127.14,127.08,26.1043]
[1719197094615,1.70325693,127.14,127.13,7.8659]
[1719197095127,1.70325693,127.14,127.13,52.8659]
[1719197095438,7.863,127.18,127.13,52.8659]
[1719197096642,7.8636,127.17,127.13,45.0]
[1719197097013,7.8643,127.16,127.13,45.0]
[1719197097214,7.8643,127.16,127.09,38.7598]
[1719197097416,7.8643,127.16,127.11,7.8667]
[1719197097616,7.8637,127.17,127.12,45.0]
[1719197098016,7.8637,127.17,127.12,52.8663]
[1719197099125,22.5298,127.19,127.13,7.8659]
[1719197099324,20.0,127.18,127.14,52.8653]
[1719197099734,18.75,127.23,127.15,6.3212]
[1719197099935,0.3076044,127.24,127.19,7.862]
[1719197100141,7.8604,127.22,127.16,7.8639]
[1719197100448,7.8604,127.22,127.17,45.0]
[1719197100940,7.861,127.21,127.17,45.0]
[1719197101145,7.86,127.23,127.17,52.8634]
[1719197101537,7.8605,127.22,127.17,52.8631]
[1719197101740,7.86,127.23,127.18,7.8627]
[1719197102043,0.3076044,127.24,127.17,45.0]
[1719197102044,7.8606,127.22,127.17,45.0]
[1719197102244,7.8606,127.22,127.18,1.56929557]
[1719197102728,7.8606,127.22,127.17,7.8631]
[1719197102936,7.8608,127.22,127.16,45.0]
[1719197103123,20.0,127.21,127.16,45.0]
[1719197103440,20.0,127.21,127.17,7.8634]
[1719197103639,20.0,127.21,127.16,52.8638]
[1719197104225,7.8599,127.23,127.16,45.0]
[1719197104430,0.3076044,127.24,127.17,0.17]
[1719197104632,0.3076044,127.24,127.18,16.5847]
[1719197104844,0.3076044,127.24,127.23,7.8597]
[1719197105043,0.3076044,127.24,127.22,7.8601]
[1719197105533,0.3076044,127.24,127.23,45.0]
[1719197106038,0.3076044,127.24,127.18,16.5847]
[1719197106554,0.3076044,127.24,127.19,7.8618]
[1719197106850,0.3076044,127.24,127.2,7.8616]
[1719197107630,0.3076044,127.24,127.18,36.2404]
[1719197107836,0.3076044,127.24,127.21,7.8606]
[1719197107837,20.3076044,127.24,127.21,7.8606]
[1719197108021,20.3076044,127.24,127.19,45.17]
[1719197108022,0.3076044,127.24,127.22,7.8603]
[1719197108226,0.3076044,127.24,127.23,45.0]
[1719197108541,0.3076044,127.24,127.21,7.8608]
[1719197108945,0.3076044,127.24,127.2,7.8613]
[1719197109129,0.3076044,127.24,127.21,45.0]
[1719197109330,0.3076044,127.24,127.21,52.8607]
[1719197109649,0.3076044,127.24,127.2,7.8613]
[1719197109848,20.3076044,127.24,127.19,7.862]
[1719197110159,0.3076044,127.24,127.2,7.8615]
[1719197110456,0.3076044,127.24,127.2,19.6537]
[1719197110626,0.3076044,127.24,127.21,7.8607]
[1719197110827,0.3076044,127.24,127.18,36.2415]
[1719197111152,0.3076044,127.24,127.21,7.8607]
[1719197111446,0.3076044,127.24,127.22,45.0]
[1719197111946,0.3076044,127.24,127.22,52.8602]
[1719197114448,0.3076044,127.24,127.22,45.0]
[1719197114659,0.3076044,127.24,127.18,16.5847]
[1719197115156,0.3076044,127.24,127.21,7.8609]
[1719197115655,0.3076044,127.24,127.17,7.8631]
[1719197116940,0.3076044,127.24,127.18,45.0]
[1719197117446,0.3076044,127.24,127.18,52.8627]
[1719197118251,0.3076044,127.24,127.19,7.8622]
[1719197118428,0.3076044,127.24,127.18,45.0]
[1719197118633,0.3076044,127.24,127.19,8.2019]
[1719197118849,0.3076044,127.24,127.2,52.8614]
[1719197119332,8.1669044,127.24,127.2,45.0]
[1719197119745,20.0,127.23,127.2,45.0]
[1719197119945,20.3076044,127.24,127.2,45.0]
[1719197120336,7.8604,127.22,127.19,45.0]
[1719197120534,7.8604,127.22,127.17,7.8631]
[1719197120535,28.1673044,127.24,127.18,52.8626]
[1719197120842,28.1673044,127.24,127.18,7.8626]
[1719197121026,7.86,127.23,127.18,7.8626]
[1719197121530,20.3076044,127.24,127.18,7.8626]
[1719197121827,20.0,127.23,127.17,19.8274]
[1719197122027,0.3076044,127.24,127.18,45.17]
[1719197122247,0.3076044,127.24,127.21,7.8605]
[1719197122432,0.3076044,127.24,127.22,52.8603]
[1719197122641,0.3076044,127.24,127.22,7.8603]
[1719197122955,0.3076044,127.24,127.23,45.0]
[1719197123262,0.3076044,127.24,127.22,45.0]
[1719197124042,0.3076044,127.24,127.21,45.17]
[1719197124747,0.3076044,127.24,127.13,100.0]
[1719197124952,7.8613,127.21,127.16,7.8635]
[1719197126454,7.8606,127.22,127.17,7.8634]
[1719197126759,7.86,127.23,127.18,52.8626]
[1719197127055,20.0,127.22,127.18,52.8626]
[1719197127256,20.0,127.22,127.19,7.8619]
[1719197127454,20.0,127.23,127.21,7.8606]
[1719197127626,20.0,127.23,127.2,7.8613]
[1719197127831,20.0,127.23,127.21,45.0]
[1719197128232,0.3076044,127.24,127.21,52.8607]
[1719197128725,0.3076044,127.24,127.21,45.0]
[1719197129645,8.1667044,127.24,127.21,45.0]
[1719197129841,0.3076044,127.24,127.2,52.8616]
[1719197130436,0.3076044,127.24,127.2,45.0]
[1719197131357,0.3076044,127.24,127.21,7.8606]
[1719197131557,0.3076044,127.24,127.22,45.0]
[1719197131762,0.3076044,127.24,127.2,45.0]
[1719197132059,0.3076044,127.24,127.19,45.0]
[1719197132464,0.3076044,127.24,127.2,8.0313]
[1719197132761,0.3076044,127.24,127.21,45.0]
[1719197133140,0.3076044,127.24,127.2,45.0]
[1719197133757,8.1672044,127.24,127.2,45.0]
[1719197134077,7.8598,127.23,127.18,7.8625]
[1719197134354,0.3076044,127.24,127.18,7.8625]
[1719197134545,0.3076044,127.24,127.15,60.0382]
[1719197134546,8.1669044,127.24,127.19,7.8621]
[1719197135166,0.3076044,127.24,127.2,7.8616]
[1719197135340,0.3076044,127.24,127.21,45.0]
[1719197135654,0.3076044,127.24,127.19,19.9953]
[1719197135655,0.3076044,127.24,127.22,8.03]
[1719197135840,0.3076044,127.24,127.23,45.0]
[1719197136860,0.3076044,127.24,127.17,158.9751]
[1719197136861,0.3076044,127.24,127.2,7.8613]
[1719197137041,0.3076044,127.24,127.21,45.0]
[1719197137241,0.3076044,127.24,127.21,52.861]
[1719197137656,0.3076044,127.24,127.21,52.8607]
[1719197139183,0.3076044,127.24,127.17,19.6586]
[1719197139693,7.8598,127.23,127.19,7.8622]
[1719197139981,0.3076044,127.24,127.17,19.6586]
[1719197140284,6.8194044,127.24,127.15,21.6268]
[1719197140465,7.8607,127.22,127.17,7.8631]
[1719197140870,6.8194044,127.24,127.15,21.6268]
[1719197141255,0.3076044,127.24,127.21,7.8606]
[1719197141463,0.3076044,127.24,127.23,7.8597]
[1719197141894,0.3076044,127.24,127.22,7.8601]
[1719197142193,0.3076044,127.24,127.23,45.0]
[1719197142488,0.3076044,127.24,127.21,7.8608]
[1719197142489,0.3076044,127.24,127.22,45.0]
[1719197143575,0.3076044,127.24,127.21,45.0]
[1719197145099,0.3076044,127.24,127.22,7.8603]
[1719197145269,0.3076044,127.24,127.23,45.0]
[1719197146097,0.3076044,127.24,127.23,52.8597]
[1719197146261,0.3076044,127.24,127.23,53.0297]
[1719197146456,0.3076044,127.24,127.23,45.17]
[1719197146697,0.3076044,127.24,127.23,8.0297]
[1719197146900,0.3076044,127.24,127.23,45.17]
[1719197147993,0.3076044,127.24,127.23,53.0297]
[1719197148803,0.3076044,127.24,127.23,45.0]
[1719197149186,0.3076044,127.24,127.22,52.86]
[1719197149479,0.3076044,127.24,127.22,45.0]
[1719197149679,0.3076044,127.24,127.21,7.8607]
[1719197150289,0.3076044,127.24,127.22,7.8602]
[1719197151315,0.3076044,127.24,127.23,52.8597]
[1719197151619,0.3076044,127.24,127.23,53.0297]
[1719197152495,0.3076044,127.24,127.23,45.0]
[1719197154590,0.3076044,127.24,127.23,52.8597]
[1719197155112,0.3076044,127.24,127.23,45.0]
[1719197156212,0.3076044,127.24,127.22,45.0]
[1719197157384,0.3076044,127.24,127.2,7.8614]
[1719197158213,0.3076044,127.24,127.21,7.8607]
[1719197159003,0.3076044,127.24,127.22,7.86]
[1719197159215,0.3076044,127.24,127.23,45.0]
[1719197159725,0.3076044,127.24,127.23,52.8597]
[1719197160511,0.3076044,127.24,127.23,53.0297]
[1719197161506,0.3076044,127.24,127.23,168.5207]
[1719197161713,4.4e-06,127.24,127.23,168.5207]
[1719197161913,4.4e-06,127.24,127.23,68.5207]
[1719197165989,4.4e-06,127.24,127.23,45.17]
[1719197166212,4.4e-06,127.24,127.23,45.0]
[1719197166423,4.4e-06,127.24,127.22,45.0]
[1719197166807,4.4e-06,127.24,127.21,7.8607]
[1719197167309,4.4e-06,127.24,127.2,7.8613]
[1719197167706,4.4e-06,127.24,127.21,7.8609]
[1719197168415,4.4e-06,127.24,127.23,7.8597]
[1719197168623,4.4e-06,127.24,127.23,53.0297]
[1719197168800,4.4e-06,127.24,127.23,53.1997]
[1719197169918,4.4e-06,127.24,127.23,45.17]
[1719197170814,4.4e-06,127.24,127.23,53.1997]
[1719197176213,4.4e-06,127.24,127.23,53.0297]
[1719197176919,7.8607,127.22,127.18,16.539]
[1719197177111,4.4e-06,127.24,127.18,16.539]
[1719197177313,7.8593044,127.24,127.19,7.8618]
[1719197177911,4.4e-06,127.24,127.2,7.8615]
[1719197178321,20.0000044,127.24,127.2,7.8615]
[1719197178522,4.4e-06,127.24,127.2,7.8615]
[1719197178730,4.4e-06,127.24,127.21,45.0]
[1719197179132,20.0000044,127.24,127.21,45.0]
[1719197180041,20.0000044,127.24,127.2,45.0]
[1719197180544,20.0000044,127.24,127.18,24.4017]
[1719197180833,4.4e-06,127.24,127.18,24.4017]
[1719197181137,7.8599,127.23,127.18,24.4017]
[1719197181619,7.8592044,127.24,127.19,7.862]
[1719197181820,4.4e-06,127.24,127.2,45.0]
[1719197182028,7.8593044,127.24,127.2,45.0]
[1719197182225,20.0,127.23,127.2,45.0]
[1719197183942,4.4e-06,127.24,127.15,16.2395]
[1719197184128,7.8607,127.22,127.15,16.2395]
[1719197184314,7.8607,127.22,127.17,7.8633]
[1719197184517,20.0,127.21,127.17,7.8633]
[1719197185026,4.4e-06,127.24,127.17,100.0]
[1719197185225,4.4e-06,127.24,127.2,7.8612]
[1719197185436,4.4e-06,127.24,127.21,52.8609]
[1719197185633,4.4e-06,127.24,127.22,0.17]
[1719197185949,4.4e-06,127.24,127.22,45.34]
[1719197186829,4.4e-06,127.24,127.22,45.17]
[1719197187029,4.4e-06,127.24,127.22,45.0]
[1719197187233,4.4e-06,127.24,127.21,45.0]
[1719197187546,4.4e-06,127.24,127.22,0.17]
[1719197187921,4.4e-06,127.24,127.21,52.8607]
[1719197189832,4.4e-06,127.24,127.22,0.34]
[1719197190031,4.4e-06,127.24,127.23,7.8597]
[1719197190221,4.4e-06,127.24,127.23,53.1997]
[1719197193940,6.2304,127.33,127.23,53.1997]
[1719197193941,6.2304,127.33,127.25,100.0]
[1719197194147,8.3091,127.34,127.27,115.0093]
[1719197194444,16.9904337,127.37,127.31,7.8544]
[1719197194651,16.9904337,127.37,127.32,0.34]
[1719197195042,7.8517,127.36,127.32,0.34]
[1719197195550,7.8526,127.35,127.32,0.17]
[1719197195774,7.8527,127.35,127.3,7.8553]
[1719197196058,0.8298337,127.37,127.32,21.8231]
[1719197196227,0.8298337,127.37,127.33,45.34]
[1719197196435,0.8298337,127.37,127.36,7.8517]
[1719197196643,0.8298337,127.37,127.36,53.1917]
[1719197197751,7.8468,127.44,127.36,45.34]
[1719197198051,7.8468,127.44,127.39,7.8495]
[1719197198225,15.7386,127.48,127.4,45.34]
[1719197198226,20.0,127.43,127.4,45.34]
[1719197198432,20.0,127.44,127.4,45.34]
[1719197199136,27.847,127.44,127.4,45.34]
[1719197199338,27.847,127.44,127.4,45.0]
[1719197199339,20.0,127.44,127.4,45.0]
[1719197199543,15.7386,127.48,127.4,45.0]
[1719197199850,7.8478,127.43,127.4,45.0]
[1719197200058,7.8478,127.43,127.39,45.0]
[1719197200933,7.8478,127.43,127.38,45.34]
[1719197201654,7.8495,127.4,127.34,7.8524]
[1719197201860,15.6234,127.46,127.33,100.0]
[1719197202040,7.849,127.41,127.35,7.852]
[1719197202248,20.0,127.4,127.35,7.852]
[1719197202448,27.8494,127.4,127.35,7.852]
[1719197202751,29.1387,127.4,127.32,21.8231]
[1719197202981,35.6234,127.4,127.29,22.4714]
[1719197203264,7.8527,127.35,127.3,7.855]
[1719197203632,35.6234,127.4,127.29,122.4714]
[1719197203836,7.8518,127.36,127.31,7.8544]
[1719197204044,7.8514,127.37,127.32,7.8541]
[1719197204256,7.8514,127.37,127.33,45.0]
[1719197204442,20.0,127.36,127.33,45.0]
[1719197206042,27.8518,127.36,127.33,45.0]
[1719197206241,27.8518,127.36,127.32,45.34]
[1719197207465,27.8518,127.36,127.32,45.17]
[1719197208260,20.0,127.36,127.32,45.17]
[1719197208665,20.0,127.36,127.32,53.0241]
[1719197209456,20.0,127.36,127.33,0.17]
[1719197209765,20.0,127.36,127.33,8.0235]
[1719197209964,7.8508,127.38,127.34,45.0]
[1719197209965,20.0,127.37,127.34,45.0]
[1719197210872,27.8512,127.37,127.34,45.0]
[1719197211071,27.8512,127.37,127.33,45.17]
[1719197212541,7.8522,127.36,127.33,45.0]
[1719197212745,7.8522,127.36,127.32,45.0]
[1719197213971,27.8513,127.37,127.32,52.8541]
[1719197215178,7.8518,127.36,127.32,52.8541]
[1719197215674,27.8514,127.37,127.32,52.8541]
[1719197216174,20.0,127.37,127.33,7.8535]
[1719197216475,20.0,127.37,127.34,45.0]
[1719197218756,20.0,127.37,127.34,52.8529]
[1719197219181,20.0,127.37,127.34,45.0]
[1719197220162,20.0,127.37,127.34,52.8529]
[1719197220371,20.0,127.37,127.34,45.0]
[1719197220865,20.0,127.37,127.34,52.8529]
[1719197221068,23.473,127.4,127.35,0.17]
[1719197221249,20.0,127.39,127.36,7.8516]
[1719197221447,20.0,127.39,127.37,45.0]
[1719197222073,27.8499,127.39,127.36,45.0]
[1719197222249,27.8499,127.39,127.35,45.34]
[1719197222875,9.1387,127.4,127.38,7.8505]
[1719197223089,15.4084,127.43,127.39,45.0]
[1719197223377,15.4084,127.43,127.36,19.6293]
[1719197223378,20.0,127.42,127.36,19.6293]
[1719197223547,20.0,127.42,127.37,53.1907]
[1719197223548,27.8481,127.42,127.37,53.1907]
[1719197223752,27.8481,127.42,127.38,45.0]
[1719197223753,7.8486,127.41,127.38,45.0]
[1719197223955,7.8499,127.39,127.38,45.0]
[1719197224558,7.8495,127.4,127.38,45.0]
[1719197225166,15.4084,127.43,127.38,45.0]
[1719197225495,7.8487,127.41,127.38,45.0]
[1719197225679,7.8487,127.41,127.37,45.0]
[1719197225977,20.0,127.4,127.37,45.0]
[1719197226688,20.0,127.4,127.37,52.8511]
[1719197226862,7.8475,127.43,127.38,8.0202]
[1719197227065,7.847,127.44,127.39,52.8497]
[1719197227270,20.0,127.43,127.4,45.0]
[1719197227654,6.4866,127.47,127.41,0.17]
[1719197227966,7.8465,127.45,127.41,0.17]
[1719197228158,7.8465,127.45,127.4,52.8489]
[1719197228859,27.8458,127.46,127.41,7.8486]
[1719197229082,27.8458,127.46,127.42,45.0]
[1719197229582,20.0,127.46,127.42,52.8479]
[1719197230178,27.8456,127.46,127.42,52.8479]
[1719197230781,20.0,127.46,127.42,52.8479]
[1719197231660,20.0,127.46,127.43,7.8474]
[1719197231862,20.0,127.46,127.44,45.0]
[1719197232193,7.8446,127.48,127.44,45.0]
[1719197232373,20.0,127.47,127.44,45.0]
[1719197234085,27.845,127.47,127.44,45.0]
[1719197234273,20.0,127.47,127.43,52.8473]
[1719197234674,20.0,127.47,127.44,0.17]
[1719197234985,20.0,127.47,127.44,0.34]
[1719197235664,20.0,127.47,127.44,8.1866]
[1719197235863,20.0,127.46,127.45,45.0]
[1719197236078,20.0,127.46,127.45,45.17]
[1719197236272,20.0,127.46,127.4,119.622]
[1719197236273,7.8464,127.45,127.4,7.8489]
[1719197236790,20.0,127.44,127.4,7.8489]
[1719197236979,20.0,127.44,127.41,7.8484]
[1719197237180,20.0,127.44,127.38,119.6249]
[1719197237181,6.5604,127.48,127.38,119.6249]
[1719197237383,7.8461,127.46,127.41,7.8486]
[1719197237596,20.0,127.47,127.42,45.0]
[1719197237597,7.8463,127.45,127.42,45.0]
[1719197237888,20.0,127.44,127.41,45.0]
[1719197238061,27.8471,127.44,127.4,0.17]
[1719197238257,7.8475,127.43,127.4,0.17]
[1719197238480,20.0,127.44,127.37,22.7017]
[1719197238697,7.8496,127.4,127.35,7.8523]
[1719197238866,7.8499,127.39,127.34,24.1104]
[1719197239059,7.8494,127.4,127.35,7.8522]
[1719197239480,20.0,127.39,127.35,7.8522]
[1719197239988,27.85,127.39,127.34,24.1105]
[1719197240189,20.0,127.39,127.35,7.8523]
[1719197240401,20.0,127.39,127.34,16.2577]
[1719197240685,9.1387,127.46,127.32,7.8536]
[1719197240686,7.8511,127.37,127.32,7.8536]
[1719197241491,27.8187,127.43,127.31,23.7066]
[1719197241492,27.8519,127.36,127.31,23.7066]
[1719197241782,20.0,127.36,127.32,7.854]
[1719197241975,20.0,127.36,127.34,7.8526]
[1719197242164,7.8495,127.4,127.34,7.8526]
[1719197242368,20.0,127.39,127.33,100.0]
[1719197242578,6.442,127.44,127.35,100.0]
[1719197242781,6.442,127.44,127.38,7.8502]
[1719197242782,27.8478,127.43,127.38,7.8502]
[1719197242990,20.0,127.43,127.35,6.4866]
[1719197243280,20.0,127.43,127.36,53.1913]
[1719197243481,20.0,127.43,127.37,7.851]
[1719197243687,20.0,127.43,127.38,45.0]
[1719197243891,7.8486,127.42,127.38,45.0]
[1719197244394,20.0,127.41,127.38,45.0]
[1719197244695,7.8478,127.43,127.38,52.8502]
[1719197244893,27.8483,127.42,127.38,45.0]
[1719197245973,27.8483,127.42,127.36,7.8515]
[1719197245974,20.0,127.42,127.36,7.8515]
[1719197246186,7.8496,127.4,127.35,7.8522]
[1719197246383,20.0,127.39,127.35,7.8522]
[1719197247285,20.0,127.39,127.36,45.0]
[1719197247797,20.0,127.39,127.35,7.8522]
[1719197248015,27.85,127.39,127.34,7.8528]
[1719197248774,20.0,127.39,127.33,7.8533]
[1719197249001,18.68,127.42,127.34,7.8529]
[1719197249176,20.17,127.41,127.33,7.8533]
[1719197249372,9.1387,127.4,127.32,7.8541]
[1719197249578,27.8187,127.4,127.32,7.8539]
[1719197249798,20.0,127.39,127.32,7.8539]
[1719197250384,20.0,127.39,127.33,7.8535]
[1719197250796,20.0,127.39,127.34,52.8529]
[1719197251180,20.0,127.39,127.35,7.8522]
[1719197251482,20.0,127.39,127.36,45.0]
[1719197252205,20.0,127.39,127.35,45.0]
[1719197252390,20.0,127.39,127.34,45.0]
[1719197253005,7.8518,127.36,127.34,45.0]
[1719197253900,7.8518,127.36,127.28,75.2724]
[1719197253901,7.8537,127.33,127.28,7.8562]
[1719197254401,20.0,127.32,127.28,7.8562]
[1719197254598,20.0,127.32,127.27,7.857]
[1719197254599,27.8543,127.32,127.27,7.857]
[1719197254800,7.855,127.31,127.26,6.0844]
[1719197254999,7.8561,127.29,127.24,7.859]
[1719197255206,20.0,127.32,127.19,106.3331]
[1719197255207,6.4153,127.31,127.19,106.3331]
[1719197255379,7.8575,127.27,127.21,7.8603]
[1719197255583,20.0,127.26,127.21,7.8603]
[1719197255895,7.8587,127.25,127.2,7.8613]
[1719197256383,20.0,127.24,127.21,7.8608]
[1719197256583,7.8581,127.26,127.21,7.8608]
[1719197256788,20.0,127.25,127.21,7.8608]
[1719197256996,7.8573,127.28,127.23,7.8594]
[1719197257204,7.8573,127.28,127.24,45.0]
[1719197257205,20.0,127.27,127.24,45.0]
[1719197257682,7.8566,127.28,127.24,45.0]
[1719197257896,20.0,127.27,127.24,45.0]
[1719197258086,7.8563,127.29,127.24,52.8591]
[1719197258281,20.0,127.28,127.24,45.0]
[1719197258518,6.4153,127.31,127.24,45.0]
[1719197258519,7.8578,127.27,127.24,45.0]
[1719197258697,20.0,127.26,127.24,45.0]
[1719197259004,20.0,127.26,127.23,45.0]
[1719197259201,20.0,127.26,127.23,52.8596]
[1719197259401,20.0,127.27,127.24,7.859]
[1719197259610,20.0,127.27,127.25,45.0]
[1719197260211,6.4153,127.31,127.25,45.0]
[1719197260383,20.0,127.3,127.25,45.0]
[1719197260585,7.8573,127.27,127.25,45.0]
[1719197260795,7.8568,127.28,127.25,45.0]
[1719197261005,7.8557,127.3,127.25,52.8584]
[1719197261204,7.855,127.31,127.26,8.1976]
[1719197261518,20.0,127.3,127.27,52.8572]
[1719197261693,7.8544,127.32,127.27,7.8572]
[1719197261895,27.855,127.31,127.28,45.0]
[1719197262313,20.0,127.31,127.27,45.0]
[1719197262629,7.8533,127.34,127.29,7.856]
[1719197262913,20.0,127.33,127.3,45.0]
[1719197263406,20.0,127.32,127.3,45.0]
[1719197263609,7.8548,127.31,127.3,45.0]
[1719197263781,7.856,127.3,127.26,0.17]
[1719197264085,7.8561,127.29,127.26,45.34]
[1719197264708,7.8552,127.31,127.26,53.1979]
[1719197264904,9.1387,127.37,127.27,7.857]
[1719197264905,20.0,127.3,127.27,7.857]
[1719197265097,7.8545,127.32,127.28,45.0]
[1719197265290,20.0,127.31,127.28,45.0]
[1719197265804,20.0,127.31,127.28,52.8563]
[1719197266003,7.8537,127.33,127.28,52.8563]
[1719197266204,27.8542,127.32,127.28,52.8563]
[1719197267787,12.31070863,127.38,127.28,52.8563]
[1719197267788,7.8532,127.34,127.29,0.17]